bitfinex-derivatives/quotes_ETHF0:USTF0_20250912
["timestamp","ask_amount","ask_price","bid_price","bid_amount"]
[1757658028317,0.5014,4556.4,4556.3,0.2049]
[1757658028625,0.5014,4556.4,4555.6,0.3128]
[1757658028626,1.24351799,4556.4,4555.6,0.3128]
[1757658028824,0.1906,4555.7,4555.6,0.724]
[1757658029121,0.5014,4555.7,4555.6,0.724]
[1757658029818,0.5014,4555.7,4555.6,1.00375778]
[1757658031624,0.1906,4555.7,4555.6,1.00375778]
[1757658031919,0.3906,4556.5,4556.4,0.2049]
[1757658032225,0.3906,4556.5,4556.4,0.724]
[1757658032523,0.7014,4556.5,4556.4,0.724]
[1757658033224,0.1906,4556.6,4556.5,0.123]
[1757658033522,0.5014,4556.9,4556.8,0.4112]
[1757658033716,0.5014,4556.9,4556.8,0.69026287]
[1757658033913,0.5014,4556.9,4556.8,1.00306287]
[1757658034719,0.1906,4556.9,4556.8,1.00306287]
[1757658035019,0.7014,4556.9,4556.8,1.00306287]
[1757658036726,0.7014,4556.9,4556.8,0.724]
[1757658039120,0.3906,4556.9,4556.8,0.724]
[1757658039326,0.7014,4556.9,4556.8,0.724]
[1757658040422,0.3906,4556.9,4556.8,0.724]
[1757658041029,0.7014,4556.9,4556.8,0.724]
[1757658041929,0.7014,4556.9,4556.8,0.5177]
[1757658042815,0.7014,4556.9,4556.8,0.724]
[1757658043221,0.7014,4556.9,4556.1,0.3128]
[1757658043421,0.7014,4556.9,4556.3,0.3128]
[1757658043626,0.7014,4556.9,4556.5,0.3128]
[1757658043932,0.7014,4556.9,4556.1,0.3128]
[1757658044125,0.7014,4556.9,4556.2,0.27774799]
[1757658044328,0.7014,4556.9,4556.3,0.59054799]
[1757658044329,0.3108,4556.8,4556.3,0.59054799]
[1757658044627,0.7014,4556.5,4556.4,0.79544799]
[1757658046731,0.8203,4556.5,4556.4,0.79544799]
[1757658047126,0.7014,4556.5,4556.4,1.00174799]
[1757658048231,0.3108,4556.8,4556.4,1.00174799]
[1757658048529,0.7014,4557.3,4557.2,0.2049]
[1757658048733,0.7014,4557.3,4557.2,0.5177]
[1757658049029,0.7014,4557.3,4557.2,0.724]
[1757658051432,0.7014,4557.3,4557.2,1.01037877]
[1757658052828,0.7014,4557.9,4557.8,0.4112]
[1757658053029,0.92081001,4557.9,4557.8,0.724]
[1757658053235,0.7014,4557.9,4557.8,0.724]
[1757658053426,0.7014,4557.9,4557.8,1.01077975]
[1757658053626,0.1906,4558.0,4557.9,0.724]
[1757658053828,0.1906,4558.0,4557.9,1.01077975]
[1757658055440,0.7014,4558.0,4557.9,1.01077975]
[1757658057345,0.1189,4558.5,4558.0,0.123]
[1757658057543,0.8203,4558.5,4558.4,0.5177]
[1757658057735,1.36082051,4558.5,4558.4,0.8051772]
[1757658058038,1.58019051,4558.5,4557.6,0.2907]
[1757658058238,0.7055,4557.8,4557.7,0.7642129]
[1757658059444,0.7055,4557.8,4557.7,0.2665129]
[1757658059631,0.7055,4557.8,4557.7,0.7642129]
[1757658059836,0.7055,4557.8,4557.7,0.9752129]
[1757658061539,0.1975,4557.8,4557.7,0.9752129]
[1757658061740,1.3835018,4558.5,4558.3,0.207]
[1757658061741,0.7055,4558.4,4558.3,0.207]
[1757658061941,1.46592017,4558.4,4558.3,0.7642129]
[1757658062139,1.46592017,4558.4,4558.3,0.2665129]
[1757658062333,5.46592017,4558.4,4557.1,0.2907]
[1757658062534,0.2721,4558.0,4557.1,0.2907]
[1757658062740,0.54103016,4557.9,4557.1,0.2907]
[1757658062943,0.2721,4557.8,4557.1,0.2907]
[1757658063130,0.394,4557.8,4557.7,0.7087]
[1757658063542,0.93510357,4557.8,4557.7,0.7087]
[1757658063943,1.2646018,4558.7,4557.7,0.7087]
[1757658064131,0.2721,4558.5,4557.8,0.2907]
[1757658064443,1.20727436,4558.4,4558.3,0.4977]
[1757658065140,0.93517436,4558.4,4558.3,0.7087]
[1757658065742,1.20727436,4558.4,4558.3,0.7087]
[1757658066043,1.20727436,4558.4,4558.3,0.4977]
[1757658066844,1.20727436,4558.4,4558.1,0.2907]
[1757658066845,2.47187616,4558.4,4558.1,0.2907]
[1757658067037,0.394,4558.2,4558.1,0.2907]
[1757658067243,0.394,4558.2,4557.6,0.2907]
[1757658067244,1.20727436,4558.2,4557.6,0.2907]
[1757658067442,0.1975,4557.7,4557.6,0.7087]
[1757658068847,0.394,4557.7,4557.6,0.7087]
[1757658070743,1.20718985,4557.7,4557.1,0.2907]
[1757658071047,1.47313141,4557.2,4557.1,0.4977]
[1757658071548,1.74523141,4557.2,4557.1,0.7087]
[1757658072645,1.47313141,4557.2,4557.1,0.7087]
[1757658073750,2.28649468,4557.2,4556.6,0.2907]
[1757658073946,0.1975,4556.7,4556.6,0.7087]
[1757658074246,1.27663141,4557.0,4556.9,0.7087]
[1757658075550,1.47313141,4557.0,4556.9,0.7087]
[1757658075843,1.74523141,4557.0,4556.9,0.4977]
[1757658076951,0.1975,4557.0,4556.9,0.7087]
[1757658078345,1.07913141,4557.3,4557.0,0.1255]
[1757658078544,1.27663141,4557.3,4557.2,0.7087]
[1757658078750,1.81860578,4557.3,4557.2,0.7087]
[1757658079152,2.01510578,4557.3,4557.2,0.7087]
[1757658079351,1.47313141,4557.3,4557.2,0.7087]
[1757658080049,1.74523141,4557.3,4557.2,0.7087]
[1757658080542,1.74523141,4557.3,4557.2,0.4977]
[1757658081954,0.6661,4557.3,4557.2,0.4977]
[1757658082156,1.74523141,4557.3,4557.2,0.4977]
[1757658084653,1.74523141,4557.3,4557.2,0.7087]
[1757658084850,0.1975,4557.3,4557.2,0.7087]
[1757658085043,0.1975,4557.4,4557.3,0.7087]
[1757658086858,1.07913141,4557.6,4557.5,0.8342]
[1757658087159,1.81849331,4557.6,4557.5,0.8342]
[1757658090164,0.7393619,4557.6,4557.5,0.8342]
[1757658091466,1.07913141,4557.8,4557.5,0.8342]
[1757658091659,0.54195652,4557.7,4557.6,0.6984]
[1757658092058,0.74905652,4557.7,4557.6,0.6984]
[1757658095363,0.95815652,4557.7,4557.6,0.6984]
[1757658100874,1.23015652,4557.7,4557.6,0.6984]
[1757658101974,1.23015652,4557.7,4557.1,0.2916]
[1757658102171,0.6882,4557.2,4557.1,0.4924]
[1757658102565,0.4162,4557.2,4557.1,0.6984]
[1757658102968,0.4162,4557.2,4557.1,0.2916]
[1757658102969,0.6882,4557.2,4557.1,0.2916]
[1757658103174,1.23093437,4557.2,4557.1,0.2916]
[1757658103368,1.23093437,4557.2,4557.1,0.4924]
[1757658105569,0.6882,4557.2,4557.1,0.4924]
[1757658106777,0.6882,4557.2,4557.1,0.2916]
[1757658107377,0.6882,4557.2,4557.1,0.4924]
[1757658108985,0.6882,4557.2,4557.1,0.6984]
[1757658110486,0.4162,4557.2,4557.1,0.6984]
[1757658111591,0.2071,4557.2,4557.1,0.6984]
[1757658111795,0.4162,4557.2,4557.1,0.6984]
[1757658114694,0.4162,4557.2,4557.0,0.1255]
[1757658114695,1.76783141,4558.2,4558.1,0.2008]
[1757658114895,2.53008237,4558.2,4558.1,0.4924]
[1757658115888,2.31067236,4558.2,4558.1,0.6984]
[1757658117385,2.31067236,4558.2,4558.1,0.4924]
[1757658117590,1.23154095,4558.2,4558.1,0.4924]
[1757658117793,2.31067236,4558.2,4558.1,0.4924]
[1757658119502,2.31067236,4558.2,4558.1,0.2916]
[1757658119797,2.31067236,4558.2,4557.6,0.311]
[1757658119996,1.75313141,4557.7,4557.6,0.5061]
[1757658120196,2.29597236,4557.7,4557.6,0.5061]
[1757658120398,1.21684095,4557.7,4557.6,0.5061]
[1757658121806,1.21684095,4557.7,4557.1,0.311]
[1757658122002,1.75313141,4557.2,4557.1,0.5061]
[1757658122301,1.48083141,4557.2,4557.1,0.7059]
[1757658123002,0.4017,4557.2,4557.1,0.7059]
[1757658125507,0.674,4557.2,4557.1,0.7059]
[1757658126005,0.4017,4557.2,4557.1,0.7059]
[1757658127303,1.75313141,4557.2,4557.1,0.7059]
[1757658127908,2.29380507,4557.2,4557.1,0.7059]
[1757658128309,2.02150507,4557.2,4557.1,0.7059]
[1757658128510,2.29380507,4557.2,4557.1,0.311]
[1757658128706,1.21467366,4557.2,4556.6,0.311]
[1757658128902,0.94237366,4557.1,4557.0,0.8262]
[1757658130214,1.21467366,4557.1,4557.0,0.6264]
[1757658130710,0.73557366,4557.1,4557.0,0.8262]
[1757658135707,1.21467366,4557.1,4557.0,0.8262]
[1757658136910,1.21467366,4557.1,4557.0,0.311]
[1757658137512,1.21345752,4557.1,4557.0,0.6264]
[1757658142615,0.94115752,4557.1,4557.0,0.8262]
[1757658144112,0.73435752,4557.1,4557.0,0.8262]
[1757658144718,0.53945752,4557.1,4557.0,0.8262]
[1757658145408,0.221,4557.5,4557.0,0.8262]
[1757658145717,0.73427365,4557.4,4557.3,0.7059]
[1757658145913,0.94107365,4557.4,4557.3,0.7059]
[1757658146113,1.21397365,4557.4,4557.3,0.7059]
[1757658147017,1.21397365,4557.4,4557.3,0.311]
[1757658147913,1.21402869,4557.4,4557.3,0.311]
[1757658150909,1.21402869,4557.4,4556.6,0.3096]
[1757658151106,0.95912869,4557.3,4557.2,0.516]
[1757658151313,1.23232869,4557.3,4557.2,0.516]
[1757658152217,0.95912869,4557.3,4557.2,0.7066]
[1757658154021,0.74972869,4557.3,4557.2,0.7066]
[1757658155419,1.23232869,4557.3,4557.2,0.7066]
[1757658155619,1.23232869,4557.3,4557.2,0.3096]
[1757658155918,1.23232869,4557.3,4557.2,0.516]
[1757658156821,2.49536509,4557.3,4556.6,0.3096]
[1757658157017,0.53942869,4557.2,4556.7,0.2064]
[1757658157318,0.4197,4556.8,4556.7,0.397]
[1757658157718,0.4197,4556.8,4556.7,0.7066]
[1757658157923,0.2103,4556.8,4556.7,0.7066]
[1757658158110,1.5362364,4557.3,4556.8,0.3096]
[1757658158316,0.95956731,4557.2,4557.1,0.7066]
[1757658160923,1.23276731,4557.2,4557.1,0.7066]
[1757658161426,1.23276731,4557.2,4557.1,0.516]
[1757658162521,1.23276731,4557.2,4557.1,0.3096]
[1757658164326,1.23276731,4557.2,4557.1,0.516]
[1757658165023,0.95956731,4557.2,4557.1,0.7066]
[1757658166325,1.23276731,4557.2,4557.1,0.7066]
[1757658167026,0.95956731,4557.2,4557.1,0.7066]
[1757658169621,0.53986731,4557.2,4557.1,0.7066]
[1757658175129,0.75016731,4557.2,4557.1,0.7066]
[1757658178033,1.22976731,4557.2,4557.1,0.516]
[1757658178233,1.22976731,4557.2,4557.1,0.3096]
[1757658180734,0.95716731,4557.2,4557.1,0.7001]
[1757658181124,1.22976731,4557.2,4557.1,0.7001]
[1757658182429,0.95716731,4557.2,4557.1,0.7001]
[1757658182824,0.53986731,4557.2,4557.1,0.7001]
[1757658183234,0.74696731,4557.2,4557.1,0.7001]
[1757658183629,0.95396731,4557.2,4557.1,0.7001]
[1757658183840,1.22656731,4557.2,4557.1,0.7001]
[1757658185940,1.22656731,4557.2,4557.1,0.3096]
[1757658186340,1.22656731,4557.2,4557.1,0.503]
[1757658190438,2.30598996,4557.2,4557.1,0.503]
[1757658190943,2.30598996,4557.2,4557.1,0.3096]
[1757658191144,2.31829675,4557.2,4557.1,0.3096]
[1757658191646,2.31829675,4557.2,4557.1,0.503]
[1757658192244,2.32654351,4557.2,4557.1,0.503]
[1757658193044,2.33479027,4557.2,4557.1,0.503]
[1757658194438,2.33816118,4557.2,4557.1,0.503]
[1757658196545,1.25873853,4557.2,4557.1,0.503]
[1757658196750,0.98613853,4557.2,4557.1,0.7001]
[1757658197744,0.98688757,4557.2,4557.1,0.7001]
[1757658198547,0.57278757,4557.2,4557.1,0.7001]
[1757658199246,0.77988757,4557.2,4557.1,0.7001]
[1757658199749,0.57278757,4557.2,4557.1,0.7001]
[1757658200450,0.77988757,4557.2,4557.1,0.7001]
[1757658201447,1.25948757,4557.2,4557.1,0.7001]
[1757658201749,2.33891022,4557.2,4557.1,0.7001]
[1757658201939,2.33891022,4557.2,4557.1,0.503]
[1757658202146,2.33891022,4557.2,4557.1,0.3096]
[1757658202747,2.33891022,4557.2,4557.1,0.503]
[1757658203542,2.33891022,4557.2,4557.1,0.3096]
[1757658203747,1.25948757,4557.2,4557.1,0.3096]
[1757658204341,1.25948757,4557.2,4557.1,0.503]
[1757658204843,0.98688757,4557.2,4557.1,0.7001]
[1757658206046,1.25948757,4557.2,4557.1,0.7001]
[1757658206253,0.98688757,4557.2,4557.1,0.7001]
[1757658206851,0.57278757,4557.2,4557.1,4.91954]
[1757658208241,0.03217122,4557.2,4557.1,4.91954]
[1757658208841,0.03217122,4557.2,4557.1,4.7001]
[1757658210751,1.1826219,4558.4,4558.3,0.4922]
[1757658210752,1.6795219,4558.4,4558.3,0.4922]
[1757658210952,0.54023966,4558.4,4558.3,2.06804163]
[1757658211163,32.0677,4558.9,4558.3,1.77794163]
[1757658211448,1.2324936,4558.8,4558.7,0.4922]
[1757658211652,1.2324936,4558.8,4558.7,0.78191898]
[1757658212256,1.2324936,4558.8,4558.7,0.4922]
[1757658213152,1.2324936,4558.8,4558.1,0.2901]
[1757658213348,1.2324936,4558.8,4558.0,0.1253]
[1757658213349,0.6961,4558.3,4558.2,0.55841382]
[1757658213550,1.77552265,4558.3,4558.2,0.55841382]
[1757658214356,1.77552265,4558.3,4558.2,0.76051382]
[1757658216657,1.48682265,4558.3,4558.2,0.96721382]
[1757658217557,0.2082,4558.3,4558.2,0.96721382]
[1757658219162,1.50862265,4558.6,4558.5,0.8242]
[1757658220055,1.70782265,4558.6,4558.5,0.8242]
[1757658220261,1.48682265,4558.6,4558.5,0.8242]
[1757658220558,1.70782265,4558.6,4558.5,0.8242]
[1757658220760,1.99652265,4558.6,4558.5,0.8242]
[1757658222260,0.9171,4558.6,4558.5,0.8242]
[1757658223060,0.6284,4558.6,4558.5,0.8242]
[1757658223362,0.4074,4558.6,4558.5,0.8242]
[1757658223663,0.4074,4558.2,4558.1,0.4922]
[1757658223862,0.4074,4558.2,4558.1,0.96682537]
[1757658224451,1.48682265,4558.2,4558.1,0.96682537]
[1757658224662,1.77552265,4558.2,4558.1,0.96682537]
[1757658224862,1.77552265,4558.2,4558.1,0.76012537]
[1757658228568,1.77552265,4558.2,4558.1,0.26792537]
[1757658230865,1.77552265,4558.2,4558.1,0.55802537]
[1757658233571,1.77552265,4558.2,4558.1,0.56541315]
[1757658234368,2.30853853,4558.2,4558.1,0.56541315]
[1757658235171,2.30853853,4558.2,4558.1,0.76751315]
[1757658235372,2.01983853,4558.2,4558.1,0.97421315]
[1757658235566,1.48682265,4558.2,4558.1,0.97421315]
[1757658236066,1.70782265,4558.2,4558.1,0.97421315]
[1757658237766,1.48682265,4558.2,4558.1,0.97421315]
[1757658238165,2.02038255,4558.2,4558.1,0.6989]
[1757658238473,2.30728255,4558.2,4558.1,0.6989]
[1757658238674,2.30728255,4558.2,4558.1,0.4922]
[1757658239267,2.30728255,4558.2,4557.5,0.1253]
[1757658239268,2.30728255,4558.2,4557.6,0.2951]
[1757658239467,0.4008,4557.7,4557.6,0.4968]
[1757658239768,0.4008,4557.7,4557.6,0.7049]
[1757658241373,0.2013,4557.7,4557.6,0.7049]
[1757658241774,0.4008,4557.7,4557.6,0.7049]
[1757658241970,0.6877,4557.7,4557.6,0.7049]
[1757658242371,0.4008,4557.7,4557.6,0.7049]
[1757658247282,0.6877,4557.7,4557.6,0.4968]
[1757658247675,0.4008,4557.7,4557.6,0.7049]
[1757658250981,0.6877,4557.7,4557.6,0.7049]
[1757658252984,0.4008,4557.7,4557.6,0.7049]
[1757658253286,0.2013,4557.7,4557.6,0.7049]
[1757658256080,0.9087,4558.6,4558.5,0.8255]
[1757658256289,1.44285552,4558.6,4558.5,0.8255]
[1757658257085,1.44285552,4558.6,4558.5,0.2951]
[1757658257883,1.44285552,4558.6,4558.1,0.2951]
[1757658258084,0.4008,4558.1,4558.0,0.8255]
[1757658258482,0.93495552,4558.1,4558.0,0.8255]
[1757658259186,0.94847153,4558.1,4558.0,0.8255]
[1757658260286,1.24361912,4558.1,4558.0,0.8255]
[1757658260990,0.95671912,4558.1,4558.0,0.8255]
[1757658261287,0.96496671,4558.1,4558.0,0.8255]
[1757658263988,1.25186671,4558.1,4558.0,0.8255]
[1757658264780,0.96496671,4558.1,4558.0,0.8255]
[1757658265390,0.96496671,4558.1,4558.0,0.6174]
[1757658265691,1.25186671,4558.1,4558.0,0.2951]
[1757658266980,1.25186671,4558.1,4557.6,0.2951]
[1757658267185,0.6877,4557.6,4557.5,0.6221]
[1757658267886,0.6877,4557.6,4557.5,0.4968]
[1757658268088,0.6877,4557.6,4557.0,0.1159]
[1757658268089,1.26835176,4557.6,4557.0,0.1159]
[1757658268293,0.4069,4557.1,4557.0,0.5176]
[1757658268894,0.2042,4557.1,4557.0,0.8251]
[1757658269087,0.25890317,4557.1,4557.0,0.8251]
[1757658270091,0.26443801,4557.1,4557.0,0.8251]
[1757658273595,0.06023801,4557.1,4557.0,0.8251]
[1757658275896,0.06847589,4557.1,4557.0,0.8251]
[1757658276393,0.07671377,4557.1,4557.0,0.8251]
[1757658276592,0.07671377,4557.1,4557.0,1.04454]
[1757658276798,0.07671377,4557.1,4557.0,0.8251]
[1757658278000,0.08494874,4557.1,4557.0,0.5176]
[1757658278199,0.08494874,4557.1,4557.0,0.8251]
[1757658278395,0.2881,4558.0,4557.0,0.8251]
[1757658278601,0.09046483,4557.1,4557.0,0.8251]
[1757658284300,0.09869738,4557.1,4557.0,0.8251]
[1757658285303,0.10692993,4557.1,4557.0,0.8251]
[1757658286302,0.11516248,4557.1,4557.0,0.8251]
[1757658287308,0.12069165,4557.1,4557.0,0.5176]
[1757658287506,0.12069165,4557.1,4557.0,0.8251]
[1757658290208,0.695,4558.6,4558.5,0.5069]
[1757658290503,1.22878823,4558.6,4558.5,0.5069]
[1757658293114,1.22878823,4558.6,4558.5,0.8309]
[1757658294310,1.24523959,4558.6,4558.5,0.8309]
[1757658295218,1.25346527,4558.6,4558.5,0.8309]
[1757658296110,0.72522682,4558.6,4558.5,0.8309]
[1757658298217,0.43712682,4558.6,4558.5,0.8309]
[1757658298916,0.74552682,4558.6,4558.5,0.8309]
[1757658301016,0.74552682,4558.6,4558.5,0.7092]
[1757658301017,2.00808189,4558.6,4558.5,0.7092]
[1757658301516,2.00808189,4558.6,4558.0,0.1217]
[1757658301517,0.415,4558.1,4558.0,0.5261]
[1757658302010,0.24503774,4558.1,4558.0,0.8239]
[1757658302317,0.03843774,4558.1,4558.0,0.8239]
[1757658302518,0.04664866,4558.1,4558.0,0.8239]
[1757658304215,0.05485713,4558.1,4558.0,0.8239]
[1757658305711,0.26145713,4558.1,4558.0,0.8239]
[1757658305917,0.77825713,4558.1,4558.0,0.8239]
[1757658308526,0.46985713,4558.1,4558.0,0.8239]
[1757658309613,0.7864656,4558.1,4558.0,0.8239]
[1757658310114,0.7864656,4558.1,4558.0,0.2978]
[1757658310822,0.79467101,4558.1,4558.0,0.508]
[1757658311322,0.79467101,4558.1,4558.0,0.7022]
[1757658311620,0.79467101,4558.1,4558.0,0.8203]
[1757658311825,0.07947642,4558.1,4558.0,0.8203]
[1757658312330,0.3084,4558.5,4558.0,0.8203]
[1757658312519,0.08508395,4558.1,4558.0,0.8203]
[1757658312922,0.80848395,4558.1,4558.0,0.8203]
[1757658314522,1.88747978,4558.1,4558.0,0.8203]
[1757658315332,1.88747978,4558.1,4558.0,0.7022]
[1757658315528,1.88747978,4558.1,4558.0,0.508]
[1757658315831,0.80848395,4558.1,4558.0,0.508]
[1757658316031,1.88747978,4558.1,4558.0,0.8203]
[1757658316432,1.57907978,4558.1,4558.0,0.8203]
[1757658317230,2.11288903,4558.1,4558.0,0.8203]
[1757658317828,2.42128903,4558.1,4558.0,0.8203]
[1757658318333,2.42949076,4558.1,4558.0,0.8203]
[1757658319228,2.43769249,4558.1,4558.0,0.8203]
[1757658320031,2.44589422,4558.1,4558.0,0.8203]
[1757658322731,2.44589422,4558.1,4558.0,0.7022]
[1757658324229,2.44589422,4558.1,4557.5,0.1217]
[1757658324435,0.415,4557.7,4557.6,0.7022]
[1757658324734,0.2066,4557.7,4557.6,0.7022]
[1757658325237,0.31628914,4557.7,4557.6,0.7022]
[1757658327638,0.83308914,4557.7,4557.6,0.7022]
[1757658327936,0.81918914,4557.7,4557.6,0.7022]
[1757658329438,0.52468914,4557.7,4557.6,0.7022]
[1757658330932,0.81918914,4557.7,4557.6,0.7022]
[1757658334141,0.52468914,4557.7,4557.6,0.7022]
[1757658335239,0.81918914,4557.7,4557.6,0.7022]
[1757658337239,0.81918914,4557.7,4557.6,0.2978]
[1757658337438,5.79406799,4557.7,4556.6,0.3047]
[1757658337633,1.77499583,4556.7,4556.6,0.7178]
[1757658338232,1.88468497,4556.7,4556.6,0.7178]
[1757658341738,1.89288241,4556.7,4556.6,0.7178]
[1757658342337,1.90107985,4556.7,4556.6,0.7178]
[1757658343634,1.77499583,4556.7,4556.6,0.7178]
[1757658343844,1.90927729,4556.7,4556.6,0.7178]
[1757658351350,2.66229446,4556.7,4556.1,0.3047]
[1757658351545,0.4896,4555.6,4555.5,0.5377]
[1757658351749,0.62388146,4555.6,4555.5,0.5377]
[1757658352051,0.62388146,4555.6,4555.5,0.8424]
[1757658352652,0.32938146,4555.6,4555.5,0.8424]
[1757658356157,0.83028146,4555.6,4555.5,0.8424]
[1757658356447,0.83028146,4555.6,4552.6,0.98809]
[1757658356448,0.696,4554.7,4554.6,0.7178]
[1757658356655,1.77499583,4554.7,4554.6,0.5109]
[1757658356944,1.90927729,4554.7,4554.6,0.5109]
[1757658357845,0.2106,4553.8,4553.7,0.7115]
[1757658358047,1.77829583,4553.8,4553.7,0.7115]
[1757658358358,1.99779583,4553.8,4553.7,0.7115]
[1757658358648,0.9188,4553.8,4553.7,0.7115]
[1757658358849,0.76138146,4553.8,4553.7,0.7115]
[1757658359646,1.05308146,4553.8,4553.7,0.7115]
[1757658362447,0.35378146,4553.8,4553.7,0.7115]
[1757658362652,0.35378146,4553.8,4553.1,0.3022]
[1757658362653,2.13207729,4553.8,4553.1,0.3022]
[1757658362844,0.2106,4553.3,4553.2,0.4093]
[1757658363040,0.2106,4553.3,4553.2,0.7115]
[1757658363941,0.13428146,4553.3,4553.2,2.01011583]
[1757658364957,0.13428146,4553.3,4553.2,0.7115]
[1757658370363,0.83358146,4553.3,4553.2,0.7115]
[1757658374259,0.83358146,4553.3,4552.6,0.222]
[1757658374460,0.6993,4552.8,4552.7,0.7115]
[1757658374957,0.83358146,4552.8,4552.7,0.7115]
[1757658380664,1.05318146,4552.8,4552.7,0.7115]
[1757658383959,0.35388146,4552.8,4552.7,0.7115]
[1757658384159,0.35388146,4552.8,4552.7,1.97671015]
[1757658384556,0.088,4554.6,4552.8,0.3022]
[1757658384756,0.2917,4554.2,4552.9,0.2196]
[1757658384969,0.8217,4554.0,4553.9,0.2101]
[1757658385168,1.35484517,4554.0,4553.9,0.2101]
[1757658387165,1.35484517,4554.0,4553.6,0.3022]
[1757658387366,0.6993,4553.7,4553.6,0.5123]
[1757658387559,1.23244517,4553.7,4553.6,0.5123]
[1757658387959,0.6995,4553.1,4553.0,0.9181]
[1757658392872,0.6995,4551.9,4551.8,2.62442162]
[1757658393069,1.96471015,4551.9,4551.8,0.3903]
[1757658394277,1.96471015,4551.9,4551.8,0.1908]
[1757658394477,0.6995,4551.9,4551.8,0.1908]
[1757658394672,0.6995,4551.9,4551.8,0.6971]
[1757658394972,0.2926,4552.4,4551.8,0.3903]
[1757658395170,0.1185,4552.5,4552.4,0.3903]
[1757658395171,0.5254,4552.5,4552.4,0.3903]
[1757658395370,0.818,4552.5,4552.4,0.3903]
[1757658396072,0.818,4552.5,4551.5,0.1198]
[1757658396379,0.818,4552.5,4551.6,0.3068]
[1757658396569,0.2926,4552.4,4551.7,0.3068]
[1757658397073,0.6995,4551.8,4551.7,0.6971]
[1757658400074,0.6995,4551.5,4551.4,0.1995]
[1757658400278,0.6995,4551.5,4551.4,0.1908]
[1757658400279,0.818,4551.5,4551.4,0.1908]
[1757658400669,0.818,4551.5,4551.0,0.3068]
[1757658400871,0.6995,4551.1,4550.6,0.3068]
[1757658401077,0.4884,4550.7,4550.6,0.6971]
[1757658402883,0.6995,4550.7,4550.6,0.6971]
[1757658406769,0.4884,4550.7,4550.6,0.6971]
[1757658407171,0.1185,4551.0,4550.6,0.6971]
[1757658407374,0.2926,4550.9,4550.7,0.3068]
[1757658407582,0.2926,4550.9,4550.8,0.6971]
[1757658407786,0.1958,4549.8,4549.7,0.6971]
[1757658407984,0.6995,4549.8,4549.7,0.6971]
[1757658408178,0.2926,4549.7,4549.6,31.855]
[1757658409783,0.2926,4549.7,4549.6,32.1618]
[1757658411885,0.2926,4550.9,4550.1,0.3068]
[1757658414187,0.4884,4550.2,4550.1,0.6971]
[1757658414574,0.6995,4550.2,4550.1,0.6971]
[1757658414986,0.4884,4550.2,4550.1,0.6971]
[1757658415377,0.2926,4550.4,4550.2,0.3068]
[1757658415687,1.38371015,4551.0,4550.2,0.3068]
[1757658415986,0.2926,4550.9,4550.2,0.3068]
[1757658416589,0.4884,4550.3,4550.2,0.6971]
[1757658418585,0.6995,4550.3,4550.2,0.1908]
[1757658418891,0.331,4550.0,4549.9,0.4312]
[1757658419091,0.836,4550.0,4549.9,0.4312]
[1757658419387,0.836,4550.0,4549.9,0.2082]
[1757658419791,0.836,4550.0,4549.8,0.223]
[1757658420691,0.7093,4549.9,4549.8,0.4312]
[1757658420889,0.7093,4549.9,4549.8,0.7437]
[1757658421197,0.7093,4549.9,4549.8,0.9466]
[1757658422191,0.505,4549.9,4549.8,0.9466]
[1757658422388,0.1267,4550.5,4549.8,0.9466]
[1757658422389,0.836,4550.5,4550.4,0.7236]
[1757658422690,0.836,4550.5,4550.4,0.4111]
[1757658422891,0.836,4550.5,4550.4,0.2082]
[1757658423384,0.836,4550.5,4550.4,0.7236]
[1757658424292,0.836,4550.5,4550.2,0.223]
[1757658424793,0.836,4550.5,4550.4,0.2082]
[1757658425191,0.836,4550.5,4550.4,0.7236]
[1757658427290,0.7093,4550.5,4550.4,0.7236]
[1757658427794,0.836,4550.5,4550.4,0.7236]
[1757658428589,0.836,4550.5,4550.4,0.4111]
[1757658428802,0.836,4550.5,4550.4,0.2082]
[1757658428997,0.299,4550.4,4550.2,0.223]
[1757658429200,0.4103,4549.7,4549.6,31.9445]
[1757658429498,0.7093,4549.7,4549.6,32.1675]
[1757658430399,0.7093,4549.7,4549.6,31.632]
[1757658430587,0.7093,4549.7,4549.6,32.1675]
[1757658431297,0.505,4549.7,4549.6,32.1675]
[1757658433902,0.505,4549.7,4549.6,31.9445]
[1757658434099,0.505,4549.7,4549.6,32.1675]
[1757658434402,0.505,4549.7,4549.6,31.632]
[1757658434596,0.7093,4549.7,4549.6,0.223]
[1757658435493,0.7093,4549.7,4549.6,0.2082]
[1757658436200,0.505,4549.4,4549.3,0.223]
[1757658436407,1.79226756,4549.4,4548.5,2.05012162]
[1757658436704,0.1267,4549.5,4549.0,0.7236]
[1757658436705,1.79226756,4549.1,4549.0,0.7236]
[1757658436902,1.79226756,4549.1,4549.0,0.9466]
[1757658437200,1.79226756,4549.1,4549.0,0.7236]
[1757658437409,1.79226756,4549.1,4548.1,32.73496756]
[1757658437410,0.7093,4547.9,4547.8,4.08698544]
[1757658437698,0.7093,4547.9,4547.8,0.223]
[1757658437894,0.7093,4547.9,4547.8,0.6341]
[1757658438096,0.505,4547.9,4547.8,0.6341]
[1757658438599,0.505,4547.9,4547.2,31.653]
[1757658438600,0.4103,4547.9,4547.2,31.653]
[1757658438800,0.4103,4547.7,4547.6,0.2029]
[1757658439003,1.49326756,4547.7,4547.6,32.1191]
[1757658439209,0.3465,4548.0,4547.6,32.1191]
[1757658439395,0.505,4547.9,4547.8,0.6877]
[1757658439801,0.505,4547.9,4547.8,0.9117]
[1757658440007,0.505,4547.9,4547.8,0.6877]
[1757658440200,0.505,4547.9,4547.8,0.9117]
[1757658440600,0.299,4547.9,4547.8,0.9117]
[1757658441306,0.2198,4548.0,4547.8,0.6351]
[1757658441500,0.2198,4548.0,4547.9,0.6877]
[1757658441702,0.5188,4548.0,4547.9,0.6877]
[1757658441907,0.7568,4548.0,4547.6,31.654]